fUST/lending_fUST_20250717
["ID","MTS","AMOUNT","RATE_DAILY","PERIOD"]
[372653861,1752735045052,-460.0,0.00019223,2]
[372653862,1752735045062,-460.0,0.00019223,2]
[372653863,1752735045072,-460.0,0.00019223,2]
[372653864,1752735045082,-1300.71,0.00019223,2]
[372653865,1752735045092,-691.63,0.00019223,2]
[372653866,1752735045102,-460.0,0.00019223,2]
[372653867,1752735045111,-474.33,0.00019223,2]
[372653868,1752735045121,-646.42,0.00019223,2]
[372653869,1752735045130,-460.0,0.00019223,2]
[372653870,1752735045140,-498.58,0.00019223,2]
[372653871,1752735045149,-913.15,0.00019223,2]
[372653872,1752735045159,-531.78,0.00019223,2]
[372653873,1752735045168,-460.0,0.00019223,2]
[372653874,1752735045178,-460.0,0.00019223,2]
[372653875,1752735045188,-460.0,0.00019224,2]
[372653876,1752735045198,-460.0,0.00019224,2]
[372653877,1752735045211,-500.0,0.00019224,2]
[372653878,1752735045221,-500.0,0.00019226,2]
[372653879,1752735045230,-460.0,0.00019226,2]
[372653880,1752735045240,-460.0,0.00019226,2]
[372653881,1752735045250,-732.55,0.00019226,2]
[372653882,1752735045260,-551.29,0.00019226,2]
[372653883,1752735045270,-460.0,0.00019226,2]
[372653884,1752735045281,-460.0,0.00019226,2]
[372653885,1752735045291,-2703.32,0.00019226,2]
[372653886,1752735045300,-799.66,0.00019226,2]
[372653887,1752735045310,-460.0,0.00019226,2]
[372653888,1752735045319,-724.56,0.00019226,2]
[372653889,1752735045329,-352.132311,0.00019227,2]
[372653890,1752735045340,-352.132311,0.00019227,2]
[372653891,1752735045350,-460.0,0.00019227,2]
[372653892,1752735045360,-460.0,0.00019227,2]
[372653893,1752735045370,-1211.48,0.00019227,2]
[372653894,1752735045380,-664.88,0.00019227,2]
[372653895,1752735045390,-1887.15,0.00019227,2]
[372653896,1752735045399,-507.28,0.00019227,2]
[372653897,1752735045409,-460.0,0.00019228,2]
[372653898,1752735045419,-469.5843142,0.00019228,2]
[372653899,1752735045428,-460.0,0.00019228,2]
[372653900,1752735045438,-460.0,0.00019228,2]
[372653901,1752735045448,-460.0,0.00019228,2]
[372653902,1752735045458,-522.87,0.00019228,2]
[372653903,1752735045468,-460.0,0.00019228,2]
[372653904,1752735045477,-460.0,0.00019228,2]
[372653905,1752735045487,-400.0,0.00019228,2]
[372653906,1752735045496,-460.0,0.00019228,2]
[372653907,1752735045505,-460.0,0.00019228,2]
[372653908,1752735045514,-640.23,0.00019228,2]
[372653909,1752735045522,-625.48,0.00019228,2]
[372653910,1752735045532,-300.15,0.00019228,2]
[372653911,1752735045542,-460.0,0.00019228,2]
[372653912,1752735045551,-460.0,0.00019228,2]
[372653913,1752735045562,-460.0,0.00019228,2]
[372653915,1752735045571,-460.0,0.00019228,2]
[372653918,1752735045581,-709.79,0.00019228,2]
[372653919,1752735045595,-460.0,0.00019228,2]
[372653920,1752735045605,-460.0,0.00019228,2]
[372653921,1752735045616,-460.0,0.00019228,2]
[372653922,1752735045626,-321.09837773,0.00019228,2]
[372653923,1752735045636,-460.0,0.00019228,2]
[372653924,1752735045646,-460.0,0.00019228,2]
[372653925,1752735045656,-460.0,0.00019228,2]
[372653926,1752735045667,-645.82,0.00019228,2]
[372653927,1752735045677,-460.0,0.00019228,2]
[372653928,1752735045687,-460.0,0.00019229,2]
[372653929,1752735045697,-460.0,0.00019229,2]
[372653931,1752735045707,-460.0,0.00019229,2]
[372653932,1752735045718,-183.568206,0.00019229,2]
[372653933,1752735045735,-829.95,0.00019229,2]
[372653934,1752735045758,-460.0,0.00019229,2]
[372653935,1752735045771,-460.0,0.00019229,2]
[372653936,1752735045782,-460.0,0.00019229,2]
[372653937,1752735045792,-460.0,0.00019229,2]
[372653938,1752735045802,-460.0,0.00019229,2]
[372653939,1752735045812,-460.0,0.00019231,2]
[372653940,1752735045822,-466.47860225,0.00019231,2]
[372653941,1752735045834,-460.0,0.00019231,2]
[372653942,1752735045844,-392.95,0.00019231,2]
[372653943,1752735045854,-460.0,0.00019231,2]
[372653944,1752735045863,-185.509432,0.00019232,2]
[372653945,1752735045873,-185.509432,0.00019232,2]
[372653946,1752735045883,-214.433393,0.00019232,2]
[372653947,1752735045894,-214.433393,0.00019232,2]
[372653948,1752735045903,-151.0,0.00019232,2]
[372653949,1752735045913,-151.0,0.00019232,2]
[372653950,1752735045922,-151.0,0.00019232,2]
[372653951,1752735045932,-151.0,0.00019255,2]
[372653952,1752735045943,-235.997575,0.00019255,2]
[372653953,1752735045952,-235.997575,0.00019255,2]
[372653954,1752735045962,-151.0,0.00019255,2]
[372653955,1752735045971,-303.00000303,0.00019278,2]
[372653956,1752735045981,-303.03030303,0.00019278,2]
[372653957,1752735045991,-19313.41483182,0.00019293,2]
[372653958,1752735046000,-151.0,0.000193,2]
[372653959,1752735046010,-353.0,0.00019303,2]
[372653960,1752735046020,-700.0,0.0001932,2]
[372653961,1752735046029,-185.509432,0.00019329,2]
[372653962,1752735046039,-185.509432,0.00019329,2]
[372653963,1752735046048,-597.120042,0.00019329,2]
[372653964,1752735046058,-597.120042,0.00019329,2]
[372653965,1752735046067,-352.132311,0.00019329,2]
[372653966,1752735046076,-352.132311,0.00019329,2]
[372653967,1752735046087,-214.433393,0.00019329,2]
[372653968,1752735046097,-214.433393,0.00019329,2]
[372653970,1752735046106,-273.980102,0.00019329,2]
[372653971,1752735046116,-151.0,0.00019329,2]
[372653972,1752735046125,-151.0,0.00019329,2]
[372653973,1752735046135,-100000.0,0.00019329,2]
[372653974,1752735046144,-353.0,0.00019381,2]
[372653975,1752735046154,-1000.0,0.00019399,2]
[372653977,1752735046163,-151.0,0.000194,2]
[372653978,1752735046172,-151.0,0.00019402,2]
[372653979,1752735046182,-235.997575,0.00019402,2]
[372653980,1752735046191,-235.997575,0.00019402,2]
[372653981,1752735046202,-151.0,0.00019402,2]
[372653982,1752735046215,-460.0,0.00019402,2]
[372653983,1752735046225,-1476.81,0.00019402,2]
[372653984,1752735046235,-2996.48,0.00019402,2]
[372653985,1752735046244,-929.92,0.00019402,2]
[372653986,1752735046254,-460.0,0.00019404,2]
[372653987,1752735046263,-460.0,0.00019404,2]
[372653988,1752735046272,-460.0,0.00019404,2]
[372653989,1752735046283,-460.0,0.00019404,2]
[372653990,1752735046293,-800.0,0.0001944,2]
[372653991,1752735046302,-500.0,0.00019449,2]
[372653992,1752735046311,-151.0,0.0001945,2]
[372653993,1752735046320,-185.509432,0.0001945,2]
[372653994,1752735046330,-185.509432,0.0001945,2]
[372653995,1752735046343,-597.120042,0.0001945,2]
[372653996,1752735046358,-597.120042,0.0001945,2]
[372653997,1752735046372,-352.132311,0.0001945,2]
[372653998,1752735046385,-352.132311,0.0001945,2]
[372654001,1752735046397,-235.997575,0.0001945,2]
[372654002,1752735046408,-235.997575,0.0001945,2]
[372654003,1752735046422,-214.433393,0.0001945,2]
[372654004,1752735046435,-214.433393,0.0001945,2]
[372654005,1752735046449,-151.0,0.0001945,2]
[372654006,1752735046462,-151.0,0.0001945,2]
[372654007,1752735046475,-151.0,0.0001945,2]
[372654008,1752735046487,-303.00000303,0.00019467,2]
[372654009,1752735046500,-303.03030303,0.00019467,2]
[372654010,1752735046513,-1500.0,0.00019468,2]
[372654011,1752735046527,-500.0,0.00019473,2]
[372654012,1752735046540,-500.0,0.00019473,2]
[372654013,1752735046552,-500.70043379,0.00019473,2]
[372654014,1752735046563,-500.0,0.00019473,2]
[372654015,1752735046575,-500.0,0.00019473,2]
[372654016,1752735046589,-500.0,0.00019473,2]
[372654017,1752735046603,-500.0,0.00019473,2]
[372654018,1752735046616,-501.66459955,0.00019473,2]
[372654019,1752735046628,-500.0,0.00019473,2]
[372654020,1752735046639,-540.13657752,0.00019473,2]
[372654021,1752735046650,-500.0,0.00019473,2]
[372654022,1752735046663,-500.0,0.00019473,2]
[372654023,1752735046675,-500.22689423,0.00019473,2]
[372654024,1752735046687,-500.0,0.00019473,2]
[372654025,1752735046698,-443.13346081,0.00019473,2]
[372654026,1752735046713,-500.45452731,0.00019473,2]
[372654027,1752735046726,-313.97699375,0.00019473,2]
[372654028,1752735046738,-500.0,0.00019473,2]
[372654029,1752735046751,-500.0,0.00019473,2]
[372654030,1752735046763,-500.0,0.00019473,2]
[372654031,1752735046776,-500.0,0.00019473,2]
[372654032,1752735046787,-345.01998582,0.00019473,2]
[372654033,1752735046797,-500.0,0.00019473,2]
[372654034,1752735046807,-500.0,0.00019473,2]
[372654035,1752735046819,-500.0,0.00019473,2]
[372654036,1752735046834,-500.0,0.00019473,2]
[372654037,1752735046848,-550.49386033,0.00019473,2]
[372654038,1752735046861,-385.95731252,0.00019473,2]
[372654039,1752735046872,-172.77631336,0.00019473,2]
[372654040,1752735046883,-500.0,0.00019473,2]
[372654041,1752735046895,-500.0,0.00019473,2]
[372654042,1752735046907,-500.0,0.00019473,2]
[372654043,1752735046920,-500.73116624,0.00019473,2]
[372654044,1752735046931,-500.0,0.00019473,2]
[372654045,1752735046942,-500.0,0.00019473,2]
[372654046,1752735046953,-500.0,0.00019473,2]
[372654047,1752735046964,-500.84310535,0.00019473,2]
[372654048,1752735046975,-500.0,0.00019473,2]
[372654049,1752735046986,-300.04120621,0.00019473,2]
[372654050,1752735046997,-500.0,0.00019473,2]
[372654051,1752735047009,-500.36556923,0.00019473,2]
[372654052,1752735047020,-326.09313373,0.00019473,2]
[372654053,1752735047031,-1052.96,0.00019488,3]
[372654054,1752735047042,-131709.2994338,0.00019488,2]
[372654055,1752735047053,-160.0,0.00019488,2]
[372654056,1752735047065,-1045.04,0.0001949,3]
[372654057,1752735047076,-522.52,0.0001949,3]
[372654058,1752735047088,-526.48,0.00019491,3]
[372654059,1752735047100,-460.0,0.00019492,2]
[372654060,1752735047111,-460.0,0.00019493,2]
[372654061,1752735047123,-460.0,0.00019493,2]
[372654062,1752735047134,-460.0,0.00019493,2]
[372654063,1752735047146,-163.92056786,0.00019493,2]
[372654064,1752735047157,-1843.02,0.00019493,2]
[372654065,1752735047169,-460.0,0.00019494,2]
[372654066,1752735047180,-460.0,0.00019496,2]
[372654067,1752735047192,-460.0,0.00019496,2]
[372654068,1752735047205,-460.0,0.00019496,2]
[372654069,1752735047217,-3457.88,0.00019496,2]
[372654070,1752735047229,-789.83,0.00019496,2]
[372654071,1752735047241,-4699.05,0.00019496,2]
[372654072,1752735047253,-460.45,0.00019496,2]
[372654073,1752735047264,-2440.55,0.00019496,2]
[372654074,1752735047276,-460.0,0.00019496,2]
[372654075,1752735047289,-1913.65,0.00019496,2]
[372654076,1752735047300,-460.0,0.00019496,2]
[372654077,1752735047311,-1594.34,0.00019496,2]
[372654078,1752735047322,-626.01,0.00019496,2]
[372654079,1752735047335,-460.0,0.00019497,2]
[372654080,1752735047347,-460.0,0.00019497,2]
[372654081,1752735047358,-460.0,0.00019497,2]
[372654082,1752735047369,-460.0,0.00019497,2]
[372654083,1752735047381,-460.0,0.00019497,2]
[372654084,1752735047392,-1300.71,0.00019497,2]
[372654085,1752735047403,-691.63,0.00019497,2]
[372654086,1752735047415,-460.0,0.00019497,2]
[372654087,1752735047427,-474.33,0.00019497,2]
[372654088,1752735047437,-646.42,0.00019497,2]
[372654089,1752735047449,-460.0,0.00019497,2]
[372654090,1752735047460,-498.58,0.00019497,2]
[372654091,1752735047471,-913.15,0.00019497,2]
[372654092,1752735047483,-531.78,0.00019497,2]
[372654093,1752735047497,-460.0,0.00019497,2]
[372654094,1752735047512,-460.0,0.00019497,2]
[372654095,1752735047529,-563.48650561,0.00019498,2]
[372654096,1752735047540,-460.0,0.00019498,2]
[372654097,1752735047552,-500.0,0.00019498,2]
[372654098,1752735047563,-207.67776865,0.00019499,2]
[372654099,1752735047575,-460.0,0.000195,2]
[372654100,1752735047587,-460.0,0.000195,2]
[372654101,1752735047598,-2041.64,0.000195,2]
[372654102,1752735047610,-732.55,0.000195,2]
[372654103,1752735047621,-551.29,0.000195,2]
[372654104,1752735047633,-460.0,0.000195,2]
[372654105,1752735047644,-460.0,0.000195,2]
[372654106,1752735047655,-2703.32,0.000195,2]
[372654107,1752735047666,-799.66,0.000195,2]
[372654108,1752735047677,-460.0,0.000195,2]
[372654109,1752735047688,-724.56,0.000195,2]
[372654110,1752735047699,-460.0,0.00019501,2]
[372654111,1752735047710,-460.0,0.00019501,2]
[372654112,1752735047721,-1211.48,0.00019501,2]
[372654113,1752735047733,-664.88,0.00019501,2]
[372654114,1752735047744,-1887.15,0.00019501,2]
[372654115,1752735047756,-507.28,0.00019501,2]
[372654116,1752735047767,-460.0,0.00019502,2]
[372654117,1752735047778,-460.0,0.00019502,2]
[372654118,1752735047790,-460.0,0.00019502,2]
[372654119,1752735047801,-480.91300054,0.00019502,2]
[372654120,1752735047812,-522.87,0.00019502,2]
[372654121,1752735047823,-512.75,0.00019502,2]
[372654122,1752735047835,-460.0,0.00019502,2]
[372654123,1752735047846,-460.0,0.00019502,2]
[372654124,1752735047858,-460.0,0.00019502,2]
[372654125,1752735047869,-640.23,0.00019502,2]
[372654126,1752735047881,-625.48,0.00019502,2]
[372654127,1752735047892,-460.0,0.00019502,2]
[372654128,1752735047903,-460.0,0.00019502,2]
[372654129,1752735047914,-460.0,0.00019502,2]
[372654130,1752735047923,-460.0,0.00019502,2]
[372654131,1752735047933,-709.79,0.00019502,2]
[372654132,1752735047944,-460.0,0.00019502,2]
[372654133,1752735047954,-460.0,0.00019502,2]
[372654134,1752735047963,-460.0,0.00019502,2]
[372654135,1752735047973,-460.0,0.00019502,2]
[372654136,1752735047982,-460.0,0.00019502,2]
[372654137,1752735047992,-645.82,0.00019502,2]
[372654138,1752735048002,-460.0,0.00019502,2]
[372654139,1752735048011,-460.0,0.00019503,2]
[372654140,1752735048021,-460.0,0.00019503,2]
[372654141,1752735048030,-460.0,0.00019503,2]
[372654142,1752735048040,-829.95,0.00019503,2]
[372654143,1752735048259,-460.0,0.00019503,2]
[372654144,1752735048277,-460.0,0.00019503,2]
[372654145,1752735048295,-460.0,0.00019503,2]
[372654146,1752735048305,-460.0,0.00019503,2]
[372654147,1752735048315,-460.0,0.00019503,2]
[372654148,1752735048325,-460.0,0.00019505,2]
[372654149,1752735048335,-460.0,0.00019505,2]
[372654150,1752735048345,-460.0,0.00019505,2]
[372654151,1752735048354,-647.0,0.00019536,2]
[372654152,1752735048365,-2155.0,0.00019536,2]
[372654153,1752735048376,-407.0,0.00019536,2]
[372654154,1752735048385,-972.972,0.00019536,2]
[372654155,1752735048395,-800.0,0.00019559,2]
[372654156,1752735048405,-303.00000303,0.00019656,2]
[372654157,1752735048414,-303.03030303,0.00019656,2]
[372654158,1752735048424,-460.0,0.00019676,2]
[372654159,1752735048434,-1476.81,0.00019676,2]
[372654160,1752735048443,-2996.48,0.00019676,2]
[372654161,1752735048452,-929.92,0.00019676,2]
[372654162,1752735048462,-350.96584799,0.00019678,2]
[372654163,1752735048472,-460.0,0.00019678,2]
[372654164,1752735048482,-470.10029292,0.00019678,2]
[372654165,1752735048491,-460.0,0.00019678,2]
[372654166,1752735048502,-460.0,0.00019678,2]
[372654167,1752735048511,-800.0,0.00019679,2]
[372654168,1752735048521,-151.0,0.000197,2]
[372654169,1752735048531,-185.509432,0.000197,2]
[372654170,1752735048541,-185.509432,0.000197,2]
[372654171,1752735048551,-235.997575,0.000197,2]
[372654172,1752735048560,-235.997575,0.000197,2]
[372654173,1752735048570,-214.433393,0.000197,2]
[372654174,1752735048581,-214.433393,0.000197,2]
[372654175,1752735048591,-151.0,0.000197,2]
[372654176,1752735048601,-151.0,0.000197,2]
[372654177,1752735048611,-151.0,0.000197,2]
[372654178,1752735048622,-352.132311,0.00019721,2]
[372654179,1752735048632,-352.132311,0.00019721,2]
[372654180,1752735048642,-215.0738,0.00019736,2]
[372654181,1752735048652,-1299.305,0.00019736,2]
[372654182,1752735048662,-2498.71531441,0.00019747,2]
[372654183,1752735048672,-460.0,0.00019766,2]
[372654184,1752735048682,-460.0,0.00019766,2]
[372654185,1752735048692,-460.0,0.00019767,2]
[372654186,1752735048702,-460.0,0.00019767,2]
[372654187,1752735048712,-1843.02,0.00019767,2]
[372654188,1752735048722,-468.47513244,0.00019768,2]
[372654189,1752735048732,-460.0,0.0001977,2]
[372654190,1752735048743,-549.65,0.0001977,2]
[372654191,1752735048753,-3457.88,0.0001977,2]
[372654192,1752735048763,-789.83,0.0001977,2]
[372654193,1752735048773,-4699.05,0.0001977,2]
[372654194,1752735048783,-460.45,0.0001977,2]
[372654195,1752735048793,-2440.55,0.0001977,2]
[372654196,1752735048803,-460.0,0.0001977,2]
[372654197,1752735048814,-1913.65,0.0001977,2]
[372654198,1752735048824,-460.0,0.0001977,2]
[372654199,1752735048834,-1594.34,0.0001977,2]
[372654200,1752735048845,-626.01,0.0001977,2]
[372654201,1752735048854,-420.0,0.0001977,2]
[372654202,1752735048864,-420.0,0.0001977,2]
[372654203,1752735048874,-460.0,0.00019771,2]
[372654204,1752735048885,-534.92980233,0.00019771,2]
[372654205,1752735048895,-460.0,0.00019771,2]
[372654206,1752735048905,-460.0,0.00019771,2]
[372654207,1752735048915,-460.0,0.00019771,2]
[372654208,1752735048925,-1300.71,0.00019771,2]
[372654209,1752735048935,-691.63,0.00019771,2]
[372654210,1752735048944,-605.37,0.00019771,2]
[372654211,1752735048954,-474.33,0.00019771,2]
[372654212,1752735048964,-646.42,0.00019771,2]
[372654213,1752735048973,-461.69,0.00019771,2]
[372654214,1752735048983,-498.58,0.00019771,2]
[372654215,1752735048993,-913.15,0.00019771,2]
[372654216,1752735049003,-531.78,0.00019771,2]
[372654217,1752735049013,-588.50384396,0.00019771,2]
[372654218,1752735049022,-460.0,0.00019772,2]
[372654219,1752735049032,-500.0,0.00019772,2]
[372654220,1752735049041,-1179.0,0.00019772,2]
[372654221,1752735049049,-597.120042,0.00019773,2]
[372654222,1752735049059,-597.120042,0.00019773,2]
[372654223,1752735049068,-460.0,0.00019774,2]
[372654224,1752735049077,-732.55,0.00019774,2]
[372654225,1752735049086,-551.29,0.00019774,2]
[372654226,1752735049095,-460.0,0.00019774,2]
[372654227,1752735049104,-460.0,0.00019774,2]
[372654228,1752735049114,-2703.32,0.00019774,2]
[372654229,1752735049123,-799.66,0.00019774,2]
[372654230,1752735049133,-460.0,0.00019774,2]
[372654231,1752735049142,-724.56,0.00019774,2]
[372654232,1752735049151,-460.0,0.00019775,2]
[372654233,1752735049161,-460.0,0.00019775,2]
[372654234,1752735049171,-1211.48,0.00019775,2]
[372654235,1752735049180,-664.88,0.00019775,2]
[372654236,1752735049190,-1887.15,0.00019775,2]
[372654237,1752735049199,-507.28,0.00019775,2]
[372654238,1752735049213,-460.0,0.00019776,2]
[372654239,1752735049222,-460.0,0.00019776,2]
[372654240,1752735049232,-460.0,0.00019776,2]
[372654241,1752735049241,-522.87,0.00019776,2]
[372654242,1752735049252,-460.0,0.00019776,2]
[372654243,1752735049262,-460.0,0.00019776,2]
[372654244,1752735049272,-460.0,0.00019776,2]
[372654245,1752735049282,-640.23,0.00019776,2]
[372654246,1752735049294,-625.48,0.00019776,2]
[372654247,1752735049304,-460.0,0.00019776,2]
[372654248,1752735049314,-460.0,0.00019776,2]
[372654249,1752735049324,-460.0,0.00019776,2]
[372654250,1752735049334,-460.0,0.00019776,2]
[372654251,1752735049344,-709.79,0.00019776,2]
[372654252,1752735049354,-460.0,0.00019776,2]
[372654253,1752735049364,-460.0,0.00019776,2]
[372654254,1752735049374,-460.0,0.00019776,2]
[372654255,1752735049384,-286.41627651,0.00019776,2]
[372654256,1752735049393,-460.0,0.00019776,2]
[372654257,1752735049403,-645.82,0.00019776,2]
[372654258,1752735049413,-460.0,0.00019776,2]
[372654259,1752735049423,-460.0,0.00019777,2]
[372654260,1752735049433,-460.0,0.00019777,2]
[372654261,1752735049442,-460.0,0.00019777,2]
[372654262,1752735049452,-829.95,0.00019777,2]
[372654263,1752735049462,-460.0,0.00019777,2]
[372654264,1752735049472,-460.0,0.00019777,2]
[372654265,1752735049482,-468.66538314,0.00019777,2]
[372654266,1752735049492,-325.77279094,0.00019777,2]
[372654267,1752735049501,-460.0,0.00019777,2]
[372654268,1752735049511,-460.0,0.00019779,2]
[372654269,1752735049520,-460.0,0.00019779,2]
[372654270,1752735049530,-460.0,0.00019779,2]
[372654271,1752735049540,-252.50027,0.0001978,2]
[372654272,1752735049550,-185.509432,0.0001978,2]
[372654273,1752735049559,-185.509432,0.0001978,2]
[372654274,1752735049569,-597.120042,0.0001978,2]
[372654275,1752735049579,-597.120045,0.0001978,2]
[372654276,1752735049588,-352.132311,0.0001978,2]
[372654277,1752735049598,-352.132319,0.0001978,2]
[372654278,1752735049607,-235.997575,0.0001978,2]
[372654279,1752735049617,-235.997584,0.0001978,2]
[372654280,1752735049626,-214.433393,0.0001978,2]
[372654281,1752735049637,-214.433393,0.0001978,2]
[372654282,1752735049647,-151.0,0.0001978,2]
[372654283,1752735049657,-151.0,0.0001978,2]
[372654284,1752735049667,-163.217042,0.0001978,2]
[372654285,1752735049677,-151.0,0.0001978,2]
[372654286,1752735049687,-800.0,0.00019783,2]
[372654287,1752735049697,-180.0,0.00019797,2]
[372654288,1752735049710,-185.509432,0.000198,2]
[372654289,1752735049720,-185.509432,0.000198,2]
[372654290,1752735049730,-214.433393,0.000198,2]
[372654291,1752735049740,-163.32774,0.000198,2]
[372654292,1752735049750,-214.433393,0.000198,2]
[372654293,1752735049759,-151.0,0.000198,2]
[372654294,1752735049769,-253.19605968,0.00019845,4]
[372654295,1752735049780,-454.54545455,0.00019845,4]
[372654296,1752735049790,-800.0,0.00019858,2]
[372654297,1752735049799,-1680.0,0.00019864,2]
[372654298,1752735049808,-353.0,0.00019881,2]
[372654299,1752735049818,-13345.35673133,0.000199,2]
[372654300,1752735049827,-353.0,0.00019918,2]
[372654301,1752735049837,-353.0,0.00019932,2]
[372654302,1752735049847,-1500.0,0.00019947,2]
[372654303,1752735049857,-1476.81,0.0001995,2]
[372654304,1752735049866,-2996.48,0.0001995,2]
[372654305,1752735049876,-929.92,0.0001995,2]
[372654306,1752735049886,-460.0,0.00019952,2]
[372654307,1752735049895,-460.0,0.00019952,2]
[372654308,1752735049905,-185.509432,0.00019989,2]
[372654309,1752735049916,-185.509435,0.00019989,2]
[372654310,1752735049925,-214.433393,0.00019989,2]
[372654311,1752735049935,-163.327746,0.00019989,2]
[372654312,1752735049944,-214.433385,0.00019989,2]
[372654313,1752735049954,-151.0,0.00019989,2]
[372654314,1752735049963,-12229.96354954,0.0002,2]
[372654315,1752735049973,-173.4165,0.0002,2]
[372654316,1752735049983,-300.0,0.0002,2]
[372654317,1752735049992,-14300.23978458,0.0002,2]
[372654318,1752735050001,-2000.0,0.00020016,2]
[372654319,1752735050011,-353.0,0.00020017,2]
[372654320,1752735050020,-1000.0,0.00020021,2]
[372654321,1752735050030,-1072.93699164,0.00020021,2]
[372654322,1752735050039,-1000.0,0.00020021,2]
[372654323,1752735050049,-848.63922981,0.00020021,2]
[372654324,1752735050059,-1000.0,0.00020021,2]
[372654325,1752735050068,-1000.0,0.00020021,2]
[372654326,1752735050077,-1000.0,0.00020021,2]
[372654327,1752735050087,-501.97479051,0.00020021,2]
[372654328,1752735050097,-1000.0,0.00020021,2]
[372654329,1752735050107,-1000.0,0.00020021,2]
[372654330,1752735050117,-500.0,0.00020021,2]
[372654331,1752735050126,-1000.0,0.00020021,2]
[372654332,1752735050136,-1000.0,0.00020021,2]
[372654333,1752735050146,-1000.0,0.00020021,2]
[372654334,1752735050155,-1000.0,0.00020021,2]
[372654335,1752735050165,-1000.0,0.00020021,2]
[372654336,1752735050174,-1000.0,0.00020021,2]
[372654337,1752735050185,-1000.0,0.00020021,2]
[372654338,1752735050196,-500.96329368,0.00020021,2]
[372654339,1752735050209,-1141.28,0.00020021,2]
[372654340,1752735050218,-507.64398519,0.00020021,2]
[372654341,1752735050227,-500.99840015,0.00020021,2]
[372654342,1752735050237,-501.13455083,0.00020021,2]
[372654343,1752735050247,-1000.0,0.00020021,2]
[372654344,1752735050256,-1000.0,0.00020021,2]
[372654345,1752735050266,-454.54545455,0.00020034,4]
[372654346,1752735050276,-260.0,0.00020036,2]
[372654347,1752735050287,-460.0,0.0002004,2]
[372654348,1752735050298,-460.0,0.00020041,2]
[372654349,1752735050309,-460.0,0.00020041,2]
[372654350,1752735050320,-1843.02,0.00020041,2]
[372654351,1752735050330,-460.0,0.00020044,2]
[372654352,1752735050341,-3457.88,0.00020044,2]
[372654353,1752735050350,-789.83,0.00020044,2]
[372654354,1752735050360,-4699.05,0.00020044,2]
[372654355,1752735050370,-460.45,0.00020044,2]
[372654356,1752735050380,-2440.55,0.00020044,2]
[372654357,1752735050389,-460.0,0.00020044,2]
[372654358,1752735050399,-1913.65,0.00020044,2]
[372654359,1752735050409,-460.0,0.00020044,2]
[372654360,1752735050418,-1594.34,0.00020044,2]
[372654361,1752735050427,-626.01,0.00020044,2]
[372654362,1752735050437,-460.0,0.00020045,2]
[372654363,1752735050446,-460.0,0.00020045,2]
[372654364,1752735050455,-460.0,0.00020045,2]
[372654365,1752735050464,-460.0,0.00020045,2]
[372654366,1752735050474,-1300.71,0.00020045,2]
[372654367,1752735050483,-691.63,0.00020045,2]
[372654368,1752735050493,-474.33,0.00020045,2]